[Event "Titled Tuesday Blitz May 31 Late 2022"]
[White "Jarmula, Lukasz"]
[Black "Oparin, Grigoriy"]
[WhiteFideId "1160664"]
[BlackFideId "24125890"]
[WhiteElo "2181"]
[BlackElo "2665"]
[Result "0-1"]
[Round "06"]
[TimeControl "180+1"]
[Date "2022.05.31"]
[WhiteClock "0:00:05"]
[BlackClock "0:00:50"]

1. d4 {[%clk 0:03:00]}  e6 {[%clk 0:03:00]} 2. e4 {[%clk 0:02:58]}  d5 {[%clk 0:03:00]} 3. Nd2 {[%clk 0:02:59]}  dxe4 {[%clk 0:03:00]} 4. Nxe4 {[%clk 0:02:58]}  Nd7 {[%clk 0:03:00]} 5. Nf3 {[%clk 0:02:58]}  Ngf6 {[%clk 0:03:01]} 6. Nxf6+ {[%clk 0:02:58]}  Nxf6 {[%clk 0:03:02]} 7. c3 {[%clk 0:02:58]}  Be7 {[%clk 0:03:02]} 8. Bd3 {[%clk 0:02:58]}  O-O {[%clk 0:03:02]} 9. O-O {[%clk 0:02:58]}  b6 {[%clk 0:03:03]} 10. Bg5 {[%clk 0:02:54]}  Bb7 {[%clk 0:03:03]} 11. Qe2 {[%clk 0:02:54]}  h6 {[%clk 0:03:03]} 12. Bh4 {[%clk 0:02:50]}  c5 {[%clk 0:03:00]} 13. dxc5 {[%clk 0:02:50]}  bxc5 {[%clk 0:02:59]} 14. Rad1 {[%clk 0:02:50]}  Qc7 {[%clk 0:02:52]} 15. Bg3 {[%clk 0:02:49]}  Qc6 {[%clk 0:02:53]} 16. Bb5 {[%clk 0:02:47]}  Qb6 {[%clk 0:02:53]} 17. Ne5 {[%clk 0:02:39]}  Rad8 {[%clk 0:02:52]} 18. a4 {[%clk 0:02:33]}  a6 {[%clk 0:02:45]} 19. Bd3 {[%clk 0:02:27]}  Bd5 {[%clk 0:02:44]} 20. Bxa6 {[%clk 0:02:15]}  Bb3 {[%clk 0:02:35]} 21. Rxd8 {[%clk 0:02:14]}  Rxd8 {[%clk 0:02:36]} 22. Bb5 {[%clk 0:02:10]}  Bd5 {[%clk 0:02:16]} 23. Ra1 {[%clk 0:02:09]}  Ra8 {[%clk 0:02:11]} 24. f3 {[%clk 0:02:07]}  Bd6 {[%clk 0:02:06]} 25. Nc4 {[%clk 0:02:04]}  Bxc4 {[%clk 0:02:05]} 26. Qxc4 {[%clk 0:02:04]}  Bxg3 {[%clk 0:02:01]} 27. hxg3 {[%clk 0:02:05]}  Nd5 {[%clk 0:02:01]} 28. Kh2 {[%clk 0:01:57]}  h5 {[%clk 0:01:58]} 29. Qe4 {[%clk 0:01:39]}  Qb8 {[%clk 0:01:48]} 30. Bc6 {[%clk 0:01:31]}  Ra6 {[%clk 0:01:33]} 31. Bxd5 {[%clk 0:01:30]}  exd5 {[%clk 0:01:34]} 32. Qxd5 {[%clk 0:01:29]}  h4 {[%clk 0:01:34]} 33. Kg1 {[%clk 0:01:00]}  hxg3 {[%clk 0:01:33]} 34. Rd1 {[%clk 0:00:58]}  Qxb2 {[%clk 0:01:29]} 35. Qd8+ {[%clk 0:00:57]}  Kh7 {[%clk 0:01:29]} 36. Qh4+ {[%clk 0:00:55]}  Rh6 {[%clk 0:01:29]} 37. Qxg3 {[%clk 0:00:55]}  Qc2 {[%clk 0:01:13]} 38. Qe1 {[%clk 0:00:51]}  Qxa4 {[%clk 0:01:12]} 39. Qe4+ {[%clk 0:00:45]}  Qxe4 {[%clk 0:01:12]} 40. fxe4 {[%clk 0:00:46]}  Re6 {[%clk 0:01:02]} 41. Rd5 {[%clk 0:00:45]}  Rxe4 {[%clk 0:01:02]} 42. Rxc5 {[%clk 0:00:45]}  Re2 {[%clk 0:01:03]} 43. Kf1 {[%clk 0:00:44]}  Rc2 {[%clk 0:01:03]} 44. c4 {[%clk 0:00:41]}  Kg6 {[%clk 0:01:03]} 45. Rc7 {[%clk 0:00:40]}  f5 {[%clk 0:01:02]} 46. Kg1 {[%clk 0:00:39]}  Kf6 {[%clk 0:01:03]} 47. Kh2 {[%clk 0:00:35]}  g6 {[%clk 0:01:02]} 48. Kg3 {[%clk 0:00:34]}  Rc3+ {[%clk 0:01:01]} 49. Kf2 {[%clk 0:00:34]}  Kg5 {[%clk 0:01:01]} 50. Rc6 {[%clk 0:00:32]}  Kh5 {[%clk 0:01:01]} 51. c5 {[%clk 0:00:29]}  g5 {[%clk 0:01:01]} 52. Rc8 {[%clk 0:00:27]}  Kg4 {[%clk 0:01:00]} 53. c6 {[%clk 0:00:25]}  Rc2+ {[%clk 0:01:01]} 54. Kf1 {[%clk 0:00:23]}  Kg3 {[%clk 0:01:00]} 55. Rg8 {[%clk 0:00:22]}  g4 {[%clk 0:00:58]} 56. Rf8 {[%clk 0:00:15]}  Rc1+ {[%clk 0:00:53]} 57. Ke2 {[%clk 0:00:14]}  Rxc6 {[%clk 0:00:52]} 58. Rxf5 {[%clk 0:00:14]}  Kxg2 {[%clk 0:00:53]} 59. Rg5 {[%clk 0:00:12]}  g3 {[%clk 0:00:53]} 60. Ke3 {[%clk 0:00:12]}  Re6+ {[%clk 0:00:49]} 61. Kf4 {[%clk 0:00:12]}  Rf6+ {[%clk 0:00:49]} 62. Ke3 {[%clk 0:00:12]}  Rf8 {[%clk 0:00:49]} 63. Rg7 {[%clk 0:00:11]}  Re8+ {[%clk 0:00:49]} 64. Kf4 {[%clk 0:00:11]}  Kf2 {[%clk 0:00:50]} 65. Rc7 {[%clk 0:00:05]}  g2 {[%clk 0:00:50]} 66. Rc1 {[%clk 0:00:05]}  g1=Q {[%clk 0:00:50]} 0-1


[Site "https://www.chess.com"]

[Event "Titled Tuesday Blitz May 31 Late 2022"]
[White "Jeet, Jain"]
[Black "Urazayev, Arystanbek"]
[WhiteFideId "5073022"]
[BlackFideId "13709810"]
[WhiteElo "2028"]
[BlackElo "2422"]
[Result "0-1"]
[Round "06"]
[TimeControl "180+1"]
[Date "2022.05.31"]
[WhiteClock "0:00:03"]
[BlackClock "0:00:15"]

1. Nf3 {[%clk 0:03:00]}  Nf6 {[%clk 0:02:59]} 2. e3 {[%clk 0:03:00]}  g6 {[%clk 0:03:00]} 3. b3 {[%clk 0:03:01]}  Bg7 {[%clk 0:03:00]} 4. Bb2 {[%clk 0:03:01]}  O-O {[%clk 0:03:01]} 5. c4 {[%clk 0:03:02]}  b6 {[%clk 0:03:00]} 6. Be2 {[%clk 0:03:01]}  Bb7 {[%clk 0:03:00]} 7. O-O {[%clk 0:03:01]}  c5 {[%clk 0:03:01]} 8. d4 {[%clk 0:03:01]}  e6 {[%clk 0:02:59]} 9. Nc3 {[%clk 0:02:59]}  Ne4 {[%clk 0:02:57]} 10. Nxe4 {[%clk 0:02:55]}  Bxe4 {[%clk 0:02:58]} 11. Nd2 {[%clk 0:02:56]}  Bb7 {[%clk 0:02:54]} 12. Bf3 {[%clk 0:02:55]}  Qc7 {[%clk 0:02:54]} 13. Bxb7 {[%clk 0:02:54]}  Qxb7 {[%clk 0:02:54]} 14. Qf3 {[%clk 0:02:54]}  Nc6 {[%clk 0:02:50]} 15. Rab1 {[%clk 0:02:48]}  cxd4 {[%clk 0:02:49]} 16. Bxd4 {[%clk 0:02:44]}  Bxd4 {[%clk 0:02:14]} 17. exd4 {[%clk 0:02:44]}  d5 {[%clk 0:02:14]} 18. Qf4 {[%clk 0:01:46]}  Rad8 {[%clk 0:02:11]} 19. Nf3 {[%clk 0:01:45]}  Qe7 {[%clk 0:01:57]} 20. Rbc1 {[%clk 0:01:40]}  Na5 {[%clk 0:01:39]} 21. c5 {[%clk 0:01:37]}  bxc5 {[%clk 0:01:38]} 22. Rxc5 {[%clk 0:01:35]}  Nb7 {[%clk 0:01:34]} 23. Rc7 {[%clk 0:01:30]}  Rd7 {[%clk 0:01:30]} 24. Rfc1 {[%clk 0:01:30]}  Rfd8 {[%clk 0:01:21]} 25. Rxd7 {[%clk 0:01:18]}  Rxd7 {[%clk 0:01:22]} 26. Ne5 {[%clk 0:01:18]}  Rc7 {[%clk 0:01:01]} 27. Rxc7 {[%clk 0:00:27]}  Qxc7 {[%clk 0:01:00]} 28. Nxg6 {[%clk 0:00:28]}  Qc3 {[%clk 0:00:28]} 29. Ne7+ {[%clk 0:00:26]}  Kf8 {[%clk 0:00:24]} 30. Qb8+ {[%clk 0:00:26]}  Kxe7 {[%clk 0:00:24]} 31. Qxb7+ {[%clk 0:00:26]}  Kf6 {[%clk 0:00:25]} 32. g3 {[%clk 0:00:22]}  Qa1+ {[%clk 0:00:20]} 33. Kg2 {[%clk 0:00:21]}  Qxd4 {[%clk 0:00:21]} 34. a4 {[%clk 0:00:20]}  Qe4+ {[%clk 0:00:20]} 35. Kg1 {[%clk 0:00:20]}  Qe1+ {[%clk 0:00:20]} 36. Kg2 {[%clk 0:00:20]}  a5 {[%clk 0:00:19]} 37. Qb6 {[%clk 0:00:19]}  Qe4+ {[%clk 0:00:17]} 38. Kg1 {[%clk 0:00:18]}  d4 {[%clk 0:00:17]} 39. Qxa5 {[%clk 0:00:17]}  d3 {[%clk 0:00:15]} 40. Qc3+ {[%clk 0:00:17]}  e5 {[%clk 0:00:15]} 41. a5 {[%clk 0:00:18]}  Qe2 {[%clk 0:00:14]} 42. Qc6+ {[%clk 0:00:14]}  Kg7 {[%clk 0:00:15]} 43. a6 {[%clk 0:00:05]}  d2 {[%clk 0:00:15]} 44. a7 {[%clk 0:00:02]}  d1=Q+ {[%clk 0:00:15]} 45. Kg2 {[%clk 0:00:03]}  Qdf1# {[%clk 0:00:15]} 0-1


[Site "https://www.chess.com"]

[Event "Titled Tuesday Blitz May 31 Late 2022"]
[White "Jia, Haoxiang"]
[Black "Lashkin, Jegor"]
[WhiteFideId "8602999"]
[BlackFideId "13907808"]
[WhiteElo "2629"]
[BlackElo "2368"]
[Result "0-1"]
[Round "06"]
[TimeControl "180+1"]
[Date "2022.05.31"]
[WhiteClock "0:00:02"]
[BlackClock "0:00:15"]

1. e4 {[%clk 0:03:00]}  c5 {[%clk 0:02:59]} 2. Nc3 {[%clk 0:02:59]}  d6 {[%clk 0:02:59]} 3. g3 {[%clk 0:02:59]}  g6 {[%clk 0:02:59]} 4. Bg2 {[%clk 0:02:59]}  Bg7 {[%clk 0:02:59]} 5. d3 {[%clk 0:02:59]}  Nc6 {[%clk 0:03:00]} 6. Be3 {[%clk 0:02:58]}  Rb8 {[%clk 0:02:56]} 7. Qd2 {[%clk 0:02:58]}  b5 {[%clk 0:02:56]} 8. Nge2 {[%clk 0:02:57]}  b4 {[%clk 0:02:52]} 9. Nd1 {[%clk 0:02:56]}  Nd4 {[%clk 0:02:46]} 10. O-O {[%clk 0:02:49]}  e6 {[%clk 0:02:43]} 11. a3 {[%clk 0:02:32]}  b3 {[%clk 0:02:35]} 12. c3 {[%clk 0:02:21]}  Nxe2+ {[%clk 0:02:24]} 13. Qxe2 {[%clk 0:02:21]}  Ne7 {[%clk 0:02:24]} 14. Qd2 {[%clk 0:02:14]}  Ba6 {[%clk 0:02:20]} 15. Re1 {[%clk 0:02:13]}  O-O {[%clk 0:02:18]} 16. d4 {[%clk 0:02:11]}  Nc6 {[%clk 0:02:09]} 17. e5 {[%clk 0:02:09]}  Na5 {[%clk 0:02:03]} 18. Bh6 {[%clk 0:02:06]}  dxe5 {[%clk 0:01:55]} 19. Bxg7 {[%clk 0:02:03]}  Kxg7 {[%clk 0:01:55]} 20. Rxe5 {[%clk 0:01:55]}  Nc4 {[%clk 0:01:54]} 21. Qe1 {[%clk 0:01:56]}  cxd4 {[%clk 0:01:43]} 22. Rc5 {[%clk 0:01:50]}  d3 {[%clk 0:01:34]} 23. Qe4 {[%clk 0:01:41]}  f5 {[%clk 0:00:57]} 24. Qc6 {[%clk 0:01:28]}  Rc8 {[%clk 0:00:53]} 25. Qxc8 {[%clk 0:00:48]}  Bxc8 {[%clk 0:00:52]} 26. Rxc4 {[%clk 0:00:48]}  Ba6 {[%clk 0:00:44]} 27. Rd4 {[%clk 0:00:47]}  Qc7 {[%clk 0:00:39]} 28. Ne3 {[%clk 0:00:47]}  Rd8 {[%clk 0:00:39]} 29. Rxd8 {[%clk 0:00:46]}  Qxd8 {[%clk 0:00:40]} 30. Rd1 {[%clk 0:00:46]}  e5 {[%clk 0:00:36]} 31. Nd5 {[%clk 0:00:44]}  e4 {[%clk 0:00:33]} 32. Nf4 {[%clk 0:00:44]}  Qd6 {[%clk 0:00:32]} 33. Rd2 {[%clk 0:00:44]}  Bc4 {[%clk 0:00:32]} 34. Bf1 {[%clk 0:00:43]}  Kf7 {[%clk 0:00:31]} 35. h4 {[%clk 0:00:41]}  h6 {[%clk 0:00:30]} 36. Ng2 {[%clk 0:00:41]}  Be6 {[%clk 0:00:27]} 37. Ne3 {[%clk 0:00:40]}  f4 {[%clk 0:00:27]} 38. gxf4 {[%clk 0:00:37]}  Qxf4 {[%clk 0:00:28]} 39. Bg2 {[%clk 0:00:38]}  Qxh4 {[%clk 0:00:27]} 40. Nf1 {[%clk 0:00:36]}  Qf4 {[%clk 0:00:26]} 41. Rd1 {[%clk 0:00:35]}  Bg4 {[%clk 0:00:25]} 42. Re1 {[%clk 0:00:35]}  d2 {[%clk 0:00:23]} 43. Nxd2 {[%clk 0:00:33]}  Qxd2 {[%clk 0:00:24]} 44. Rxe4 {[%clk 0:00:33]}  Bf5 {[%clk 0:00:23]} 45. Rb4 {[%clk 0:00:31]}  Qxb2 {[%clk 0:00:20]} 46. Bd5+ {[%clk 0:00:31]}  Be6 {[%clk 0:00:20]} 47. Rb7+ {[%clk 0:00:25]}  Kf6 {[%clk 0:00:20]} 48. Be4 {[%clk 0:00:04]}  Qxc3 {[%clk 0:00:17]} 49. f3 {[%clk 0:00:04]}  b2 {[%clk 0:00:16]} 50. Kg2 {[%clk 0:00:03]}  Bf5 {[%clk 0:00:15]} 51. Bxf5 {[%clk 0:00:01]}  gxf5 {[%clk 0:00:15]} 52. Kg3 {[%clk 0:00:02]}  Qe5+ {[%clk 0:00:15]} 0-1


[Site "https://www.chess.com"]

[Event "Titled Tuesday Blitz May 31 Late 2022"]
[White "Jones, Gawain C B"]
[Black "Prado Lobo, Jonas"]
[WhiteFideId "409561"]
[BlackFideId "32050666"]
[WhiteElo "2657"]
[BlackElo "2214"]
[Result "1-0"]
[Round "06"]
[TimeControl "180+1"]
[Date "2022.05.31"]
[WhiteClock "0:01:14"]
[BlackClock "0:00:04"]

1. a3 {[%clk 0:03:00]}  e5 {[%clk 0:02:57]} 2. c4 {[%clk 0:02:59]}  c6 {[%clk 0:02:52]} 3. d4 {[%clk 0:02:59]}  exd4 {[%clk 0:02:51]} 4. Qxd4 {[%clk 0:03:00]}  d5 {[%clk 0:02:51]} 5. Nc3 {[%clk 0:02:59]}  Nf6 {[%clk 0:02:48]} 6. Bf4 {[%clk 0:02:59]}  Be6 {[%clk 0:02:46]} 7. cxd5 {[%clk 0:02:55]}  Nxd5 {[%clk 0:02:44]} 8. O-O-O {[%clk 0:02:53]}  Qf6 {[%clk 0:02:10]} 9. Nxd5 {[%clk 0:02:47]}  Bxd5 {[%clk 0:02:03]} 10. Be5 {[%clk 0:02:37]}  Qh6+ {[%clk 0:01:59]} 11. Kb1 {[%clk 0:02:30]}  Nd7 {[%clk 0:01:59]} 12. e4 {[%clk 0:02:30]}  Be6 {[%clk 0:01:48]} 13. Nf3 {[%clk 0:02:25]}  Bc5 {[%clk 0:01:40]} 14. Bxg7 {[%clk 0:02:24]}  Bxd4 {[%clk 0:01:34]} 15. Bxh6 {[%clk 0:02:24]}  Bxf2 {[%clk 0:01:34]} 16. Ng5 {[%clk 0:02:16]}  O-O-O {[%clk 0:00:56]} 17. Nxe6 {[%clk 0:02:15]}  fxe6 {[%clk 0:00:57]} 18. Bc4 {[%clk 0:02:10]}  Nc5 {[%clk 0:00:56]} 19. Rdf1 {[%clk 0:02:05]}  Nxe4 {[%clk 0:00:52]} 20. Bxe6+ {[%clk 0:02:04]}  Kc7 {[%clk 0:00:50]} 21. Bf4+ {[%clk 0:02:02]}  Kb6 {[%clk 0:00:49]} 22. Rxf2 {[%clk 0:02:02]}  Nxf2 {[%clk 0:00:47]} 23. Be3+ {[%clk 0:02:02]}  c5 {[%clk 0:00:47]} 24. Bxf2 {[%clk 0:02:03]}  Rd2 {[%clk 0:00:44]} 25. Rf1 {[%clk 0:01:53]}  Re8 {[%clk 0:00:34]} 26. Bc4 {[%clk 0:01:52]}  Re4 {[%clk 0:00:32]} 27. b3 {[%clk 0:01:48]}  a5 {[%clk 0:00:10]} 28. Bg1 {[%clk 0:01:32]}  a4 {[%clk 0:00:07]} 29. Rc1 {[%clk 0:01:28]}  axb3 {[%clk 0:00:04]} 30. Bxb3 {[%clk 0:01:26]}  Rxg2 {[%clk 0:00:03]} 31. Bxc5+ {[%clk 0:01:21]}  Ka6 {[%clk 0:00:04]} 32. Bd5 {[%clk 0:01:20]}  Ree2 {[%clk 0:00:03]} 33. Bc4+ {[%clk 0:01:18]}  b5 {[%clk 0:00:03]} 34. Bxe2 {[%clk 0:01:18]}  Rxe2 {[%clk 0:00:04]} 35. Bd6 {[%clk 0:01:17]}  Rd2 {[%clk 0:00:03]} 36. Bf4 {[%clk 0:01:16]}  Rf2 {[%clk 0:00:03]} 37. Bg3 {[%clk 0:01:17]}  Rg2 {[%clk 0:00:04]} 38. Rc2 {[%clk 0:01:16]}  Rg1+ {[%clk 0:00:04]} 39. Kb2 {[%clk 0:01:16]}  Ka5 {[%clk 0:00:05]} 40. Rc6 {[%clk 0:01:15]}  h5 {[%clk 0:00:04]} 41. Bc7+ {[%clk 0:01:14]}  Ka4 {[%clk 0:00:04]} 42. Ra6# {[%clk 0:01:14]} 1-0


[Site "https://www.chess.com"]

[Event "Titled Tuesday Blitz May 31 Late 2022"]
[White "Karttunen, Mika"]
[Black "Rustemov, Alexander"]
[WhiteFideId "502081"]
[BlackFideId "4119002"]
[WhiteElo "2343"]
[BlackElo "2797"]
[Result "0-1"]
[Round "06"]
[TimeControl "180+1"]
[Date "2022.05.31"]
[WhiteClock "0:00:02"]
[BlackClock "0:00:37"]

1. c4 {[%clk 0:03:00]}  c5 {[%clk 0:02:59]} 2. Nc3 {[%clk 0:03:00]}  g6 {[%clk 0:02:59]} 3. Nf3 {[%clk 0:02:59]}  Bg7 {[%clk 0:03:00]} 4. a3 {[%clk 0:02:58]}  Nc6 {[%clk 0:02:59]} 5. b4 {[%clk 0:02:57]}  d6 {[%clk 0:02:55]} 6. Rb1 {[%clk 0:02:51]}  Bxc3 {[%clk 0:02:40]} 7. dxc3 {[%clk 0:02:49]}  b6 {[%clk 0:02:39]} 8. h4 {[%clk 0:02:34]}  Nf6 {[%clk 0:02:36]} 9. Bh6 {[%clk 0:02:13]}  Ng4 {[%clk 0:02:34]} 10. Bf4 {[%clk 0:02:04]}  h5 {[%clk 0:02:28]} 11. e4 {[%clk 0:02:04]}  Bb7 {[%clk 0:02:27]} 12. Nd2 {[%clk 0:02:03]}  Qc7 {[%clk 0:02:24]} 13. f3 {[%clk 0:02:04]}  Nge5 {[%clk 0:02:17]} 14. Be2 {[%clk 0:01:55]}  Kf8 {[%clk 0:02:16]} 15. Nf1 {[%clk 0:01:54]}  Kg7 {[%clk 0:02:16]} 16. Ne3 {[%clk 0:01:54]}  e6 {[%clk 0:02:13]} 17. Qd2 {[%clk 0:01:47]}  Rad8 {[%clk 0:02:11]} 18. Kf2 {[%clk 0:01:42]}  Ne7 {[%clk 0:02:03]} 19. Bh2 {[%clk 0:01:25]}  f6 {[%clk 0:01:59]} 20. Rbc1 {[%clk 0:01:23]}  Nf7 {[%clk 0:01:54]} 21. g4 {[%clk 0:01:16]}  hxg4 {[%clk 0:01:52]} 22. Nxg4 {[%clk 0:01:16]}  Rh5 {[%clk 0:01:47]} 23. Rcg1 {[%clk 0:00:48]}  Rdh8 {[%clk 0:01:47]} 24. Bg3 {[%clk 0:00:28]}  f5 {[%clk 0:01:43]} 25. exf5 {[%clk 0:00:16]}  Nxf5 {[%clk 0:01:43]} 26. Bf4 {[%clk 0:00:12]}  Qe7 {[%clk 0:01:38]} 27. Ke1 {[%clk 0:00:10]}  e5 {[%clk 0:01:35]} 28. Be3 {[%clk 0:00:09]}  Nxh4 {[%clk 0:01:29]} 29. Kd1 {[%clk 0:00:09]}  Nxf3 {[%clk 0:01:28]} 30. Rxh5 {[%clk 0:00:09]}  Rxh5 {[%clk 0:01:28]} 31. Bxf3 {[%clk 0:00:08]}  Bxf3+ {[%clk 0:01:27]} 32. Kc1 {[%clk 0:00:09]}  Bxg4 {[%clk 0:01:16]} 33. Rxg4 {[%clk 0:00:09]}  Qf6 {[%clk 0:01:15]} 34. Qg2 {[%clk 0:00:08]}  Qf5 {[%clk 0:01:13]} 35. Kb2 {[%clk 0:00:08]}  g5 {[%clk 0:01:05]} 36. Rg3 {[%clk 0:00:07]}  Kg6 {[%clk 0:01:04]} 37. a4 {[%clk 0:00:07]}  Rh4 {[%clk 0:01:02]} 38. a5 {[%clk 0:00:06]}  Rxc4 {[%clk 0:01:01]} 39. axb6 {[%clk 0:00:06]}  axb6 {[%clk 0:01:01]} 40. bxc5 {[%clk 0:00:06]}  bxc5 {[%clk 0:01:01]} 41. Rh3 {[%clk 0:00:05]}  Rg4 {[%clk 0:00:43]} 42. Qa8 {[%clk 0:00:04]}  Kf6 {[%clk 0:00:41]} 43. Qg8 {[%clk 0:00:02]}  Rg2+ {[%clk 0:00:40]} 44. Ka3 {[%clk 0:00:02]}  Qxh3 {[%clk 0:00:40]} 45. Bxg5+ {[%clk 0:00:01]}  Nxg5 {[%clk 0:00:39]} 46. Qd8+ {[%clk 0:00:02]}  Kf5 {[%clk 0:00:37]} 0-1


[Site "https://www.chess.com"]

[Event "Titled Tuesday Blitz May 31 Late 2022"]
[White "Korchmar, Vasiliy"]
[Black "Demchenko, Anton"]
[WhiteFideId "24131750"]
[BlackFideId "4160258"]
[WhiteElo "2370"]
[BlackElo "2539"]
[Result "0-1"]
[Round "06"]
[TimeControl "180+1"]
[Date "2022.05.31"]
[WhiteClock "0:00:01"]
[BlackClock "0:00:20"]

1. e4 {[%clk 0:03:00]}  e5 {[%clk 0:03:00]} 2. Nf3 {[%clk 0:03:01]}  Nc6 {[%clk 0:03:00]} 3. Nc3 {[%clk 0:03:01]}  Nf6 {[%clk 0:03:00]} 4. h3 {[%clk 0:03:02]}  g6 {[%clk 0:02:57]} 5. d4 {[%clk 0:02:58]}  exd4 {[%clk 0:02:58]} 6. Nxd4 {[%clk 0:02:58]}  Bg7 {[%clk 0:02:59]} 7. Nxc6 {[%clk 0:02:58]}  bxc6 {[%clk 0:02:59]} 8. Bc4 {[%clk 0:02:59]}  O-O {[%clk 0:02:59]} 9. O-O {[%clk 0:02:59]}  Re8 {[%clk 0:02:57]} 10. Bg5 {[%clk 0:02:56]}  h6 {[%clk 0:02:56]} 11. Bh4 {[%clk 0:02:56]}  Qe7 {[%clk 0:02:38]} 12. Re1 {[%clk 0:02:37]}  Qc5 {[%clk 0:02:25]} 13. Bb3 {[%clk 0:02:33]}  d6 {[%clk 0:02:08]} 14. Qf3 {[%clk 0:02:30]}  Qh5 {[%clk 0:02:05]} 15. Qxh5 {[%clk 0:02:11]}  Nxh5 {[%clk 0:02:06]} 16. f3 {[%clk 0:02:10]}  a5 {[%clk 0:02:06]} 17. a4 {[%clk 0:01:52]}  Rb8 {[%clk 0:02:05]} 18. Rad1 {[%clk 0:01:46]}  Be6 {[%clk 0:01:57]} 19. Bxe6 {[%clk 0:01:27]}  fxe6 {[%clk 0:01:57]} 20. Rb1 {[%clk 0:01:23]}  Rb4 {[%clk 0:01:49]} 21. g4 {[%clk 0:00:37]}  Nf4 {[%clk 0:01:45]} 22. Bg3 {[%clk 0:00:37]}  Nxh3+ {[%clk 0:01:32]} 23. Kg2 {[%clk 0:00:37]}  Ng5 {[%clk 0:01:33]} 24. e5 {[%clk 0:00:38]}  d5 {[%clk 0:01:25]} 25. b3 {[%clk 0:00:37]}  Nf7 {[%clk 0:01:23]} 26. Nd1 {[%clk 0:00:31]}  c5 {[%clk 0:01:13]} 27. Nf2 {[%clk 0:00:31]}  c4 {[%clk 0:01:13]} 28. bxc4 {[%clk 0:00:23]}  Rxc4 {[%clk 0:01:14]} 29. Rb5 {[%clk 0:00:16]}  Rxa4 {[%clk 0:01:15]} 30. Rc5 {[%clk 0:00:14]}  Re7 {[%clk 0:01:07]} 31. Nd3 {[%clk 0:00:13]}  g5 {[%clk 0:01:01]} 32. Rb1 {[%clk 0:00:13]}  Rc4 {[%clk 0:01:01]} 33. Rb8+ {[%clk 0:00:09]}  Kh7 {[%clk 0:01:02]} 34. Ra8 {[%clk 0:00:02]}  Rxc5 {[%clk 0:00:55]} 35. Nxc5 {[%clk 0:00:03]}  Bxe5 {[%clk 0:00:55]} 36. Rxa5 {[%clk 0:00:03]}  Bxg3 {[%clk 0:00:48]} 37. Kxg3 {[%clk 0:00:04]}  Kg6 {[%clk 0:00:46]} 38. Ra8 {[%clk 0:00:04]}  Nd6 {[%clk 0:00:45]} 39. Rg8+ {[%clk 0:00:03]}  Kf7 {[%clk 0:00:45]} 40. Rh8 {[%clk 0:00:03]}  Kg7 {[%clk 0:00:46]} 41. Rb8 {[%clk 0:00:03]}  e5 {[%clk 0:00:42]} 42. Kf2 {[%clk 0:00:02]}  e4 {[%clk 0:00:42]} 43. Ke3 {[%clk 0:00:01]}  exf3+ {[%clk 0:00:42]} 44. Kxf3 {[%clk 0:00:02]}  Ne4 {[%clk 0:00:42]} 45. Nd3 {[%clk 0:00:02]}  c5 {[%clk 0:00:39]} 46. Rd8 {[%clk 0:00:02]}  d4 {[%clk 0:00:33]} 47. Rd5 {[%clk 0:00:02]}  c4 {[%clk 0:00:25]} 48. Ne5 {[%clk 0:00:01]}  Nf6 {[%clk 0:00:26]} 49. Rc5 {[%clk 0:00:01]}  c3 {[%clk 0:00:20]} 0-1


[Site "https://www.chess.com"]

[Event "Titled Tuesday Blitz May 31 Late 2022"]
[White "Mangialardo, Tiago Carvalho"]
[Black "Sibilio, Mario"]
[WhiteFideId "2130718"]
[BlackFideId "800422"]
[WhiteElo "2122"]
[BlackElo "2296"]
[Result "0-1"]
[Round "06"]
[TimeControl "180+1"]
[Date "2022.06.01"]
[WhiteClock "0:00:02"]
[BlackClock "0:00:14"]

1. e4 {[%clk 0:03:00]}  c6 {[%clk 0:02:58]} 2. d4 {[%clk 0:03:00]}  d5 {[%clk 0:02:57]} 3. exd5 {[%clk 0:03:01]}  cxd5 {[%clk 0:02:55]} 4. Bd3 {[%clk 0:03:02]}  Nc6 {[%clk 0:02:55]} 5. c3 {[%clk 0:03:03]}  e5 {[%clk 0:02:55]} 6. dxe5 {[%clk 0:03:01]}  Nxe5 {[%clk 0:02:54]} 7. Qe2 {[%clk 0:02:53]}  Qe7 {[%clk 0:02:53]} 8. Bc2 {[%clk 0:02:51]}  Nf6 {[%clk 0:02:49]} 9. Bf4 {[%clk 0:02:49]}  Ng6 {[%clk 0:02:43]} 10. Bg3 {[%clk 0:02:36]}  Qxe2+ {[%clk 0:02:33]} 11. Nxe2 {[%clk 0:02:37]}  Bc5 {[%clk 0:02:33]} 12. O-O {[%clk 0:02:36]}  O-O {[%clk 0:02:32]} 13. Nd2 {[%clk 0:02:34]}  Bg4 {[%clk 0:02:28]} 14. Rfe1 {[%clk 0:02:29]}  Rfe8 {[%clk 0:02:26]} 15. Nf4 {[%clk 0:02:25]}  d4 {[%clk 0:02:22]} 16. Nb3 {[%clk 0:02:21]}  Nxf4 {[%clk 0:02:03]} 17. Bxf4 {[%clk 0:02:18]}  Nd5 {[%clk 0:02:02]} 18. Nxc5 {[%clk 0:02:09]}  Nxf4 {[%clk 0:02:02]} 19. cxd4 {[%clk 0:02:02]}  Ne2+ {[%clk 0:02:01]} 20. Kf1 {[%clk 0:01:51]}  Nxd4 {[%clk 0:02:00]} 21. Rac1 {[%clk 0:01:13]}  Rxe1+ {[%clk 0:01:56]} 22. Kxe1 {[%clk 0:01:13]}  Re8+ {[%clk 0:01:55]} 23. Kd2 {[%clk 0:00:33]}  b6 {[%clk 0:01:49]} 24. Ne4 {[%clk 0:00:30]}  Nxc2 {[%clk 0:01:46]} 25. Rxc2 {[%clk 0:00:30]}  Rxe4 {[%clk 0:01:24]} 26. f3 {[%clk 0:00:30]}  Rf4 {[%clk 0:01:19]} 27. fxg4 {[%clk 0:00:26]}  Rf2+ {[%clk 0:01:07]} 28. Kd3 {[%clk 0:00:26]}  Rxc2 {[%clk 0:01:06]} 29. Kxc2 {[%clk 0:00:27]}  Kf8 {[%clk 0:01:02]} 30. Kc3 {[%clk 0:00:28]}  Ke7 {[%clk 0:01:01]} 31. Kc4 {[%clk 0:00:29]}  Kd6 {[%clk 0:01:00]} 32. Kb5 {[%clk 0:00:29]}  Kc7 {[%clk 0:00:57]} 33. Ka6 {[%clk 0:00:27]}  Kb8 {[%clk 0:00:57]} 34. b4 {[%clk 0:00:26]}  g5 {[%clk 0:00:52]} 35. g3 {[%clk 0:00:26]}  f6 {[%clk 0:00:51]} 36. h4 {[%clk 0:00:26]}  h6 {[%clk 0:00:51]} 37. h5 {[%clk 0:00:21]}  Ka8 {[%clk 0:00:50]} 38. Kb5 {[%clk 0:00:05]}  Kb7 {[%clk 0:00:50]} 39. a4 {[%clk 0:00:06]}  a6+ {[%clk 0:00:49]} 40. Kc4 {[%clk 0:00:06]}  Kc6 {[%clk 0:00:49]} 41. Kd4 {[%clk 0:00:06]}  a5 {[%clk 0:00:43]} 42. bxa5 {[%clk 0:00:01]}  bxa5 {[%clk 0:00:43]} 43. Kc4 {[%clk 0:00:02]}  Kd6 {[%clk 0:00:36]} 44. Kd4 {[%clk 0:00:02]}  Kc6 {[%clk 0:00:30]} 45. Kc4 {[%clk 0:00:03]}  Kd6 {[%clk 0:00:28]} 46. Kd4 {[%clk 0:00:03]}  Ke6 {[%clk 0:00:27]} 47. Ke4 {[%clk 0:00:04]}  Ke7 {[%clk 0:00:26]} 48. Kf5 {[%clk 0:00:04]}  Kf7 {[%clk 0:00:26]} 49. Ke4 {[%clk 0:00:04]}  Ke6 {[%clk 0:00:26]} 50. Kd4 {[%clk 0:00:04]}  f5 {[%clk 0:00:26]} 51. Kc5 {[%clk 0:00:03]}  fxg4 {[%clk 0:00:23]} 52. Kb5 {[%clk 0:00:03]}  Ke5 {[%clk 0:00:22]} 53. Kxa5 {[%clk 0:00:04]}  Ke4 {[%clk 0:00:22]} 54. Kb5 {[%clk 0:00:04]}  Kf3 {[%clk 0:00:22]} 55. a5 {[%clk 0:00:05]}  Kxg3 {[%clk 0:00:20]} 56. a6 {[%clk 0:00:06]}  Kh2 {[%clk 0:00:19]} 57. a7 {[%clk 0:00:07]}  g3 {[%clk 0:00:19]} 58. a8=Q {[%clk 0:00:08]}  g2 {[%clk 0:00:19]} 59. Qb8+ {[%clk 0:00:02]}  Kh1 {[%clk 0:00:18]} 60. Qb7 {[%clk 0:00:02]}  Kh2 {[%clk 0:00:18]} 61. Qc7+ {[%clk 0:00:02]}  Kh3 {[%clk 0:00:16]} 62. Qd7+ {[%clk 0:00:03]}  g4 {[%clk 0:00:15]} 63. Qd3+ {[%clk 0:00:03]}  g3 {[%clk 0:00:15]} 64. Qd7+ {[%clk 0:00:02]}  Kh2 {[%clk 0:00:14]} 0-1


[Site "https://www.chess.com"]